bitfinex/quotes_ETHUSD_20251120
["timestamp","ask_amount","ask_price","bid_price","bid_amount"]
[1763659428594,0.09143802,2832.3,2830.4,0.131]
[1763659428595,0.4819,2832.2,2830.4,0.131]
[1763659428947,0.09143802,2832.1,2830.4,0.131]
[1763659429095,0.4819,2832.2,2830.6,0.90699264]
[1763659429296,0.4819,2832.2,2830.6,0.405504]
[1763659429737,0.4819,2832.9,2831.0,4.14264]
[1763659430031,0.09143802,2832.6,2830.8,0.405504]
[1763659430196,0.405504,2833.0,2830.8,0.405504]
[1763659430397,0.4819,2833.0,2830.9,7.91943474]
[1763659430592,0.4819,2833.0,2831.3,0.405504]
[1763659430820,0.4819,2833.0,2831.0,0.90699264]
[1763659431026,0.405504,2832.9,2831.1,0.405504]
[1763659431394,0.405504,2832.9,2831.2,0.90699264]
[1763659431395,0.4819,2832.8,2831.2,0.90699264]
[1763659431601,0.4819,2832.8,2831.1,0.405504]
[1763659431796,0.4819,2832.8,2831.3,0.405504]
[1763659431998,0.4819,2832.8,2831.3,0.536504]
[1763659432199,0.6654,2833.2,2831.5,0.405504]
[1763659432434,0.6654,2833.2,2831.5,1.31249664]
[1763659432643,0.6654,2833.2,2831.3,0.2399]
[1763659432823,0.6654,2833.2,2831.6,1.31249664]
[1763659433023,0.4819,2833.1,2831.6,1.31249664]
[1763659433442,0.4819,2833.1,2831.6,4.84400355]
[1763659433935,0.405504,2833.0,2831.3,0.131]
[1763659434235,0.4819,2832.9,2831.4,0.405504]
[1763659434807,0.4819,2832.9,2831.3,0.131]
[1763659435829,0.09143802,2832.7,2831.3,0.131]
[1763659436029,0.09143802,2832.8,2831.3,0.131]
[1763659436198,0.4819,2832.8,2831.3,0.131]
[1763659437028,0.55384569,2832.7,2831.3,0.131]
[1763659437399,0.55384569,2832.7,2830.5,6.391029]
[1763659437400,0.405504,2832.5,2830.5,6.391029]
[1763659437600,0.405504,2832.3,2831.1,0.001]
[1763659437798,0.09143802,2832.2,2831.1,0.001]
[1763659438040,0.6654,2832.1,2831.1,0.001]
[1763659438347,0.09143802,2831.9,2831.1,0.001]
[1763659438644,0.09143802,2831.6,2831.1,0.001]
[1763659438823,0.405504,2831.5,2831.1,0.001]
[1763659439051,0.4819,2831.5,2831.1,0.001]
[1763659439265,0.57333802,2831.5,2831.1,0.001]
[1763659439473,0.405504,2831.2,2831.1,0.001]
[1763659439788,0.18094387,2831.2,2831.1,0.001]
[1763659439929,0.4819,2831.2,2831.1,0.001]
[1763659440347,0.09143802,2831.0,2830.9,0.001]
[1763659440559,0.4819,2831.8,2830.9,0.001]
[1763659440758,0.4819,2832.4,2830.9,0.03632445]
[1763659441066,0.4819,2833.0,2831.1,4.40720164]
[1763659441267,0.09143802,2832.7,2831.1,0.90699264]
[1763659441568,0.55386978,2832.6,2831.1,0.90699264]
[1763659441869,0.55386978,2832.6,2831.0,7.51393074]
[1763659441870,0.4819,2832.7,2831.2,0.03532071]
[1763659442166,0.4819,2832.7,2831.1,1.03799264]
[1763659442167,0.57333802,2832.7,2831.1,1.03799264]
[1763659442378,0.57333802,2832.7,2831.1,0.131]
[1763659442531,0.1835,2831.2,2830.9,0.001]
[1763659442737,0.4819,2832.7,2830.9,0.001]
[1763659442983,0.1835,2831.9,2830.9,0.001]
[1763659443486,0.6654,2831.9,2830.9,0.001]
[1763659443665,0.4819,2831.8,2830.9,0.001]
[1763659444152,0.1835,2832.1,2830.9,0.001]
[1763659444363,0.55401138,2831.7,2830.9,0.001]
[1763659444529,0.64547054,2831.6,2830.9,0.001]
[1763659444734,0.4819,2831.5,2830.9,0.001]
[1763659445488,0.55403252,2831.6,2830.9,0.001]
[1763659445899,0.4819,2833.1,2831.3,1.31249664]
[1763659446237,0.4819,2833.1,2831.4,0.405504]
[1763659446792,0.002,2833.2,2832.7,7.51393074]
[1763659447109,0.002,2833.2,2833.0,1.31249664]
[1763659447409,0.002,2833.5,2832.8,1.01689264]
[1763659447572,0.002,2833.5,2832.3,0.405504]
[1763659447968,0.002,2833.5,2832.3,8.82642738]
[1763659448203,0.002,2833.5,2832.4,0.405504]
[1763659448391,0.002,2833.5,2833.3,7.51393074]
[1763659448602,0.002,2833.5,2833.4,1.31249664]
[1763659448803,0.002,2833.5,2833.4,0.90699264]
[1763659449699,0.002,2833.5,2833.4,1.31249664]
[1763659449900,0.002,2833.5,2833.4,1.41839664]
[1763659450111,1.10698914,2835.0,2833.4,1.41839664]
[1763659450112,0.55347801,2835.0,2833.5,3.93961864]
[1763659450264,0.002,2835.1,2834.1,1.31249664]
[1763659450468,0.002,2835.1,2834.3,0.405504]
[1763659450808,0.002,2835.1,2834.2,0.131]
[1763659451109,0.1806,2834.3,2832.8,0.131]
[1763659451308,0.405504,2834.1,2832.0,7.51393074]
[1763659451530,0.405504,2834.1,2831.4,2.50239022]
[1763659451531,0.405504,2833.4,2831.0,7.51393074]
[1763659451821,0.09143802,2832.9,2831.0,7.51393074]
[1763659451982,0.4816,2834.0,2831.0,7.51393074]
[1763659451983,0.405504,2833.2,2831.1,0.90699264]
[1763659452179,0.4816,2833.0,2831.1,0.1039]
[1763659452882,0.4816,2833.0,2831.5,7.51393074]
[1763659453113,0.4816,2833.0,2831.6,0.90699264]
[1763659453329,0.4816,2833.0,2831.7,0.405504]
[1763659453511,0.55388052,2833.2,2831.7,0.405504]
[1763659453512,0.55388052,2833.2,2831.7,0.509404]
[1763659453824,0.4816,2833.7,2831.9,0.405504]
[1763659453994,0.4816,2833.7,2832.1,1.31249664]
[1763659453995,0.38919619,2833.7,2832.1,1.31249664]
[1763659454193,0.09143802,2834.2,2832.1,1.31249664]
[1763659454831,0.09143802,2834.1,2832.1,1.31249664]
[1763659455138,0.55386017,2834.4,2832.6,0.90699264]
[1763659455433,0.55386017,2834.4,2832.9,0.405504]
[1763659455582,0.002,2833.7,2832.7,0.131]
[1763659455784,0.002,2833.7,2832.7,0.536504]
[1763659456084,0.002,2833.7,2833.1,0.405504]
[1763659456286,0.002,2833.7,2833.1,1.31249664]
[1763659456489,0.002,2833.7,2833.5,7.51393074]
[1763659456784,0.002,2833.7,2833.6,1.03799264]
[1763659457020,0.002,2833.7,2833.6,1.63979664]
[1763659457541,0.002,2833.7,2833.6,0.131]
[1763659457816,0.002,2833.7,2832.7,0.131]
[1763659458022,0.002,2833.7,2833.0,0.90699264]
[1763659458183,0.4816,2833.6,2832.7,0.131]
[1763659458619,0.1806,2833.5,2832.7,0.131]
[1763659458993,0.4816,2833.4,2832.7,0.131]
[1763659459192,0.6622,2833.5,2831.7,1.87679266]
[1763659459422,0.887104,2833.4,2831.4,0.001]
[1763659459721,0.405504,2833.1,2831.4,0.001]
[1763659459907,0.405504,2832.8,2831.4,0.001]
[1763659460107,0.09143802,2832.9,2831.4,0.001]
[1763659460320,0.4816,2832.8,2831.4,0.001]
[1763659461028,0.1806,2831.5,2831.4,0.001]
[1763659461332,0.405504,2831.5,2830.9,0.001]
[1763659461625,0.405504,2831.1,2830.6,0.001]
[1763659461920,0.1806,2830.7,2828.9,0.0964]
[1763659462122,0.1806,2830.7,2828.5,0.001]
[1763659462123,0.405504,2830.0,2828.5,0.001]
[1763659462324,0.1806,2828.6,2828.5,0.001]
[1763659462527,0.09143802,2828.4,2827.0,0.001]
[1763659462740,0.4816,2830.5,2827.0,0.001]
[1763659462741,0.4816,2828.8,2827.2,7.51393074]
[1763659462895,0.4816,2828.8,2827.4,0.131]
[1763659463307,0.405504,2828.7,2827.0,0.001]
[1763659463507,0.405504,2828.6,2827.0,0.001]
[1763659463798,0.4816,2828.7,2827.0,0.001]
[1763659464192,0.405504,2828.6,2827.0,0.001]
[1763659464428,0.405504,2828.3,2827.0,0.001]
[1763659464635,0.4816,2828.5,2827.0,0.001]
[1763659465189,0.405504,2828.4,2827.0,0.001]
[1763659465530,0.4816,2828.5,2827.0,0.001]
[1763659465844,0.57303802,2829.0,2827.2,0.405504]
[1763659466038,0.4816,2828.6,2827.0,0.001]
[1763659466201,0.27854202,2828.6,2827.0,0.001]
[1763659466402,0.09143802,2828.3,2827.0,0.001]
[1763659466725,0.64620585,2828.3,2827.0,0.001]
[1763659467024,0.55476783,2828.3,2827.0,0.406504]
[1763659467191,0.1806,2829.1,2827.1,2.18048]
[1763659467523,0.55467649,2828.5,2827.2,3.94256336]
[1763659467725,0.55467649,2828.5,2827.4,7.91943474]
[1763659467950,0.1806,2829.1,2827.6,0.405504]
[1763659468129,0.1806,2829.1,2827.3,0.405504]
[1763659468130,0.55459937,2828.4,2827.3,0.405504]
[1763659468422,0.09143802,2828.8,2827.0,0.406504]
[1763659468621,0.55471521,2828.2,2827.0,0.406504]
[1763659468826,0.55471521,2828.2,2827.0,0.001]
[1763659469229,1.12775323,2828.2,2827.0,0.001]
[1763659469630,0.09143802,2827.6,2827.0,0.001]
[1763659469827,0.09143802,2827.3,2827.0,0.001]
[1763659470026,0.1806,2827.1,2827.0,0.001]
[1763659470324,0.09143802,2827.3,2827.0,0.001]
[1763659470627,0.1868,2828.0,2827.0,0.001]
[1763659470925,0.75853802,2828.0,2827.0,0.001]
[1763659471127,0.6671,2828.0,2827.0,0.001]
[1763659471504,0.57173802,2827.9,2827.0,0.001]
[1763659471705,0.09143802,2827.7,2827.0,0.001]
[1763659472225,0.09143802,2827.4,2827.0,0.001]
[1763659472612,0.4803,2827.3,2827.0,0.001]
[1763659472827,0.09143802,2827.2,2827.0,0.001]
[1763659473043,0.09143802,2827.4,2827.0,0.001]
[1763659473206,0.1868,2828.0,2827.0,0.001]
[1763659473207,0.405504,2827.8,2827.0,0.001]
[1763659473407,0.4803,2827.1,2827.0,0.001]
[1763659473639,0.57173802,2827.1,2827.0,0.001]
[1763659473844,0.55495496,2827.1,2827.0,0.001]
[1763659474015,0.4803,2827.6,2827.0,0.001]
[1763659474210,0.1868,2828.0,2827.0,0.001]
[1763659474211,0.57173802,2827.9,2827.0,0.001]
[1763659474658,0.09143802,2827.5,2827.0,0.001]
[1763659474964,0.1868,2828.3,2827.0,0.001]
[1763659475106,0.4803,2829.0,2827.3,0.405504]
[1763659475442,0.1806,2830.7,2827.8,1.31249664]
[1763659475443,0.1868,2829.3,2827.8,1.31249664]
[1763659475642,0.09143802,2829.6,2827.9,0.405504]
[1763659475945,0.4803,2830.6,2828.1,0.405504]
[1763659476240,0.1806,2830.7,2828.1,0.405504]
[1763659476241,0.4803,2830.5,2828.3,1.31249664]
[1763659476441,0.09143802,2830.2,2828.3,0.405504]
[1763659476639,0.4803,2830.5,2828.2,0.405504]
[1763659476640,0.09143802,2829.6,2828.2,0.405504]
[1763659476812,0.09143802,2829.6,2827.8,0.90699264]
[1763659476813,0.4803,2829.5,2826.0,1.70618283]
[1763659477010,0.09143802,2828.9,2827.0,0.4998]
[1763659477256,0.09143802,2828.6,2827.0,0.001]
[1763659477542,0.09143802,2827.8,2827.0,0.001]
[1763659477742,0.57173802,2827.8,2827.0,0.001]
[1763659477910,0.09143802,2826.9,2826.7,0.001]
[1763659478111,0.4803,2826.8,2824.8,0.4988]
[1763659478310,0.4803,2826.8,2824.5,0.131]
[1763659478311,0.405504,2826.7,2824.5,0.131]
[1763659478542,0.4803,2826.8,2824.5,0.131]
[1763659478543,0.09143802,2826.2,2824.6,0.0008]
[1763659478759,0.09143802,2826.2,2824.5,1.51829264]
[1763659479052,0.09143802,2827.7,2826.1,0.1099]
[1763659479255,0.4748,2829.0,2826.7,1.31249664]
[1763659479547,1.02950167,2828.5,2826.8,1.31249664]
[1763659479762,0.4748,2828.4,2826.8,0.405504]
[1763659479922,0.09143802,2827.9,2826.8,0.405504]
[1763659480122,0.405504,2828.3,2826.7,0.131]
[1763659480358,0.4748,2828.3,2826.7,0.131]
[1763659480670,0.09143802,2827.7,2826.7,0.131]
[1763659481170,0.4748,2827.6,2826.7,0.131]
[1763659481336,0.4748,2827.6,2826.1,0.1099]
[1763659481337,0.09143802,2827.3,2826.1,0.1099]
[1763659481539,0.55470167,2828.5,2826.3,0.90699264]
[1763659481851,0.55470167,2828.5,2824.5,18.827318]
[1763659481852,0.1927,2826.4,2824.5,18.827318]
[1763659482179,0.1927,2826.4,2824.4,0.1472]
[1763659482180,0.6675,2826.4,2824.6,0.4803]
[1763659482381,0.1927,2826.9,2824.8,3.132956]
[1763659482537,0.1927,2827.5,2825.6,7.51393074]
[1763659482874,0.09143802,2827.3,2825.7,0.405504]
[1763659483170,0.09143802,2829.3,2827.4,0.1223]
[1763659483373,0.09143802,2829.3,2825.8,1.29919914]
[1763659483374,0.1927,2828.6,2826.4,0.131]
[1763659483575,0.09143802,2827.5,2825.7,0.1099]
[1763659483875,0.09143802,2827.0,2825.7,0.515404]
[1763659484380,0.09143802,2827.7,2826.0,0.90699264]
[1763659484581,0.4748,2827.9,2825.7,0.1099]
[1763659484748,0.880304,2827.8,2825.2,0.4803]
[1763659485081,1.78729664,2827.8,2825.0,0.131]
[1763659485235,1.78729664,2827.8,2825.0,1.03799264]
[1763659485236,0.09143802,2826.3,2825.0,1.03799264]
[1763659485748,0.93012274,2827.7,2826.2,0.1099]
[1763659485948,0.93012274,2827.7,2825.9,7.51393074]
[1763659485949,0.4748,2827.6,2824.1,0.57970889]
[1763659486180,0.09143802,2826.8,2824.4,7.66113074]
[1763659486479,0.405504,2825.8,2824.0,0.1223]
[1763659486684,0.09143802,2825.2,2823.6,0.4803]
[1763659486836,0.405504,2825.8,2823.3,0.131]
[1763659486837,0.4748,2825.7,2823.4,0.1223]
[1763659487042,0.09143802,2824.5,2823.3,0.131]
[1763659489877,0.09143802,2822.1,2820.7,0.131]
[1763659490296,0.09143802,2821.7,2820.7,0.131]
[1763659490603,0.405504,2821.9,2820.5,0.001]
[1763659490898,0.4748,2821.9,2820.5,0.132]
[1763659491097,0.09143802,2821.7,2820.5,0.132]
[1763659491399,0.28413802,2822.0,2820.6,6.23685864]
[1763659491570,0.09143802,2822.0,2820.9,6.23685864]
[1763659491775,1.09969264,2823.7,2820.5,0.132]
[1763659491776,0.4748,2823.1,2821.5,0.90699264]
[1763659491985,0.56623802,2823.1,2821.6,0.405504]
[1763659492302,0.1927,2823.7,2822.0,0.90699264]
[1763659492303,0.56623802,2823.4,2822.0,0.90699264]
[1763659492465,0.09143802,2822.8,2821.7,0.405504]
[1763659492663,0.09143802,2822.8,2821.6,0.4803]
[1763659493172,0.4748,2822.8,2821.3,0.1223]
[1763659493492,0.1927,2823.7,2821.4,6.23685864]
[1763659493798,1.03060925,2823.3,2822.1,0.405504]
[1763659494001,0.09143802,2823.2,2822.1,0.405504]
[1763659494212,0.09143802,2823.2,2822.0,1.03799264]
[1763659494361,0.1927,2823.7,2822.1,0.4409386]
[1763659494564,0.1927,2823.7,2822.4,0.90699264]
[1763659494565,0.75893802,2823.7,2822.4,0.90699264]
[1763659494767,0.75893802,2823.7,2822.0,0.131]
[1763659494768,0.09143802,2823.1,2822.0,0.131]
[1763659495115,0.09143802,2822.7,2821.8,0.131]
[1763659495263,0.55571292,2823.2,2822.1,0.90699264]
[1763659495511,0.09143802,2823.6,2822.1,8.39938191]
[1763659495712,0.64717771,2823.6,2822.1,8.39938191]
[1763659495950,0.64717771,2823.6,2822.1,1.31249664]
[1763659496151,0.09143802,2823.6,2822.1,8.39940789]
[1763659496368,0.09143802,2823.6,2822.6,1.31249664]
[1763659496512,1.11138882,2823.9,2823.1,0.90699264]
[1763659496926,0.09143802,2823.7,2823.0,0.131]
[1763659497122,1.58618882,2823.9,2822.7,0.536504]
[1763659497367,0.4748,2823.8,2822.7,0.131]
[1763659497655,0.4748,2823.8,2821.6,0.4803]
[1763659497656,0.09143802,2823.0,2821.9,0.131]
[1763659497953,0.4748,2823.8,2822.2,0.90699264]
[1763659497954,0.09143802,2823.6,2822.2,0.90699264]
[1763659498125,0.405504,2823.6,2821.9,0.131]
[1763659498447,0.09143802,2822.7,2821.6,6.23685864]
[1763659498635,0.09143802,2823.0,2821.6,6.36785864]
[1763659498838,0.09143802,2823.1,2821.7,0.405504]
[1763659499021,0.09143802,2823.3,2822.2,0.405504]
[1763659499234,0.55569375,2823.9,2822.6,6.23685864]
[1763659499481,0.55569375,2823.9,2822.7,1.03799264]
[1763659499482,0.09143802,2823.8,2822.7,1.03799264]
[1763659499755,0.09143802,2823.3,2822.0,0.90699264]
[1763659499956,0.09143802,2823.3,2822.1,0.405504]
[1763659500123,0.09143802,2823.2,2822.1,0.405504]
[1763659500321,0.09143802,2823.2,2822.0,6.23685864]
[1763659500322,0.4748,2823.2,2822.0,6.23685864]
[1763659500567,0.09143802,2823.1,2821.8,0.131]
[1763659500718,0.09143802,2823.1,2821.9,0.405504]
[1763659500922,0.55569375,2823.9,2822.2,0.405504]
[1763659500923,0.55579057,2823.0,2822.2,0.405504]
[1763659501123,0.55569375,2823.9,2822.6,0.90699264]
[1763659501363,0.09143802,2823.3,2821.5,6.23685864]
[1763659501531,0.09143802,2822.6,2821.6,0.90699264]
[1763659501736,0.09143802,2822.7,2820.9,0.1223]
[1763659501949,4.63099264,2823.0,2820.3,6.23785864]
[1763659501950,0.09143802,2822.5,2820.3,6.23785864]
[1763659502161,0.4748,2822.9,2820.9,6.23685864]
[1763659502347,0.09143802,2822.6,2821.5,0.90699264]
[1763659502553,0.405504,2823.3,2821.5,1.03799264]
[1763659502734,0.1927,2824.2,2822.5,0.90699264]
[1763659502927,0.1927,2824.2,2823.0,0.90699264]
[1763659503126,0.09143802,2824.7,2823.5,0.90699264]
[1763659503327,0.09143802,2824.7,2823.5,4.57967126]
[1763659503665,0.09143802,2824.7,2822.9,3.54238141]
[1763659503666,3.724,2824.4,2821.6,0.6113]
[1763659503849,0.09143802,2823.0,2821.6,0.6113]
[1763659504053,0.405504,2822.9,2820.6,6.23685864]
[1763659504254,0.405504,2822.9,2820.7,0.16645219]
[1763659504255,0.09143802,2822.4,2820.7,0.16645219]
[1763659504452,4.129504,2822.7,2820.7,0.131]
[1763659504650,0.09143802,2821.9,2820.5,6.23785864]
[1763659504851,0.5559313,2822.4,2820.5,6.23785864]
[1763659504852,0.5559313,2822.4,2820.6,1.42274608]
[1763659505054,0.49694202,2822.2,2820.5,0.001]
[1763659505376,0.09143802,2821.8,2820.6,0.90699264]
[1763659505556,0.56623802,2822.3,2820.6,0.4803]
[1763659505868,0.4748,2822.3,2820.6,0.4803]
[1763659506067,0.4748,2822.3,2820.5,6.23785864]
[1763659506685,0.4748,2822.3,2820.6,0.131]
[1763659506686,0.55599168,2821.9,2820.6,0.131]
[1763659506890,0.55599168,2821.9,2820.6,1.51829264]
[1763659507075,0.55599168,2821.9,2820.7,0.4803]
[1763659507275,0.55599168,2821.9,2820.8,0.405504]
[1763659507482,0.1927,2822.9,2821.7,1.31249664]
[1763659507789,0.55587046,2821.9,2820.9,0.131]
[1763659507992,0.64730848,2821.9,2820.9,0.131]
[1763659508204,0.6675,2821.8,2820.2,0.132]
[1763659508355,0.09143802,2821.3,2820.2,0.132]
[1763659508797,0.4901,2821.5,2820.2,0.132]
[1763659509004,0.55601505,2821.7,2820.2,6.82175864]
[1763659509168,0.55601505,2821.7,2820.8,0.90699264]
[1763659509498,0.4901,2822.7,2821.2,6.23685864]
[1763659509499,0.6748,2822.7,2821.2,6.23685864]
[1763659509788,0.55586806,2822.3,2821.2,0.131]
[1763659509988,0.55586806,2822.3,2821.0,0.405504]
[1763659510192,0.55586806,2822.3,2821.0,0.536504]
[1763659510557,0.64730608,2822.3,2821.0,0.536504]
[1763659510954,0.55586806,2822.3,2821.4,0.90699264]
[1763659511177,0.09143802,2822.2,2821.0,0.131]
[1763659511351,1.04596806,2822.3,2820.5,0.406504]
[1763659511568,0.09143802,2821.5,2820.5,0.001]
[1763659511970,0.64730608,2822.3,2820.6,0.4529]
[1763659512296,0.4901,2822.2,2821.0,0.90699264]
[1763659512494,0.55586806,2822.3,2821.1,0.405504]
[1763659512871,0.4901,2823.2,2821.5,0.90699264]
[1763659513083,0.55584424,2823.1,2822.0,0.90699264]
[1763659513386,0.09143802,2823.7,2822.3,1.31249664]
[1763659513704,0.09143802,2823.7,2822.5,0.405504]
[1763659513913,0.09143802,2824.3,2822.7,0.405504]
[1763659514061,0.1927,2825.4,2822.1,0.405504]
[1763659514062,0.6748,2823.7,2822.1,0.405504]
[1763659514283,0.4901,2823.6,2821.4,0.1223]
[1763659514719,0.09143802,2822.6,2821.5,0.131]
[1763659514923,0.09143802,2822.8,2821.6,0.405504]
[1763659515119,0.405504,2823.5,2820.6,0.4529]
[1763659515120,0.58153802,2822.7,2820.6,0.4529]
[1763659515327,0.1847,2823.7,2821.2,2.431912]
[1763659515638,0.895604,2823.6,2821.1,1.02929264]
[1763659515929,0.09143802,2822.9,2821.4,0.405504]
[1763659516405,0.09143802,2822.5,2821.5,0.131]
[1763659516584,0.09143802,2822.5,2821.1,1.02929264]
[1763659516914,0.55589401,2822.6,2821.2,0.131]
[1763659517220,0.55589401,2822.6,2821.2,0.536504]
[1763659517420,0.55589401,2822.6,2821.7,0.405504]
[1763659517622,0.58153802,2822.9,2821.7,0.405504]
[1763659517821,0.55586289,2822.5,2821.7,0.405504]
[1763659517984,0.55588158,2823.0,2821.7,0.405504]
[1763659517985,0.55588158,2823.0,2821.8,0.90699264]
[1763659518192,0.55588158,2823.0,2821.7,0.858404]
[1763659518422,0.55583433,2822.9,2822.1,1.31249664]
[1763659518596,0.55583433,2822.9,2822.3,0.405504]
[1763659518801,0.64727235,2822.9,2821.7,0.405504]
[1763659518983,0.4901,2822.8,2821.7,0.536504]
[1763659519332,0.4901,2822.8,2821.1,6.81205864]
[1763659519333,0.09143802,2822.6,2821.1,6.81205864]
[1763659519631,0.58153802,2822.8,2821.3,0.405504]
[1763659519785,0.55583433,2822.9,2821.5,0.405504]
[1763659519985,0.55579918,2823.3,2822.1,6.23685864]
[1763659520186,0.4901,2823.9,2822.2,1.31249664]
[1763659520388,1.11157794,2823.7,2822.3,0.131]
[1763659520625,0.09143802,2823.2,2822.2,0.405504]
[1763659520924,0.09143802,2823.2,2822.2,0.131]
[1763659521218,0.4901,2823.6,2822.2,0.131]
[1763659521420,0.09143802,2822.8,2821.8,0.131]
[1763659521620,0.09143802,2822.8,2821.4,0.90699264]
[1763659521828,0.09143802,2822.6,2821.4,0.90699264]
[1763659522129,0.09143802,2821.9,2820.8,0.131]
[1763659522326,0.09143802,2822.1,2820.8,0.131]
[1763659522820,0.09143802,2821.8,2820.5,0.0364547]
[1763659523020,0.09143802,2821.8,2820.5,0.001]
[1763659523391,0.09143802,2821.6,2820.5,0.001]
[1763659523588,0.09143802,2821.2,2820.5,0.001]
[1763659523999,0.4901,2821.1,2820.5,0.001]
[1763659524211,0.1847,2820.6,2820.5,0.001]
[1763659524413,0.1847,2820.6,2819.9,0.001]
[1763659524615,1.80259664,2820.5,2817.8,0.1482]
[1763659524790,0.09143802,2819.2,2817.8,0.1482]
[1763659525104,0.09143802,2819.2,2817.5,6.68975864]
[1763659525105,0.09143802,2819.0,2817.5,0.131]
[1763659525305,0.09143802,2818.7,2817.5,0.131]
[1763659525631,0.09143802,2819.4,2817.9,0.90699264]
[1763659525841,0.09143802,2819.4,2818.3,6.23685864]
[1763659526002,0.90699264,2820.9,2818.1,0.90699264]
[1763659526003,0.4901,2820.2,2818.9,0.405504]
[1763659526208,0.58153802,2820.5,2818.9,1.31249664]
[1763659526528,6.42155864,2819.0,2817.5,1.87679266]
[1763659526824,0.64215586,2818.9,2817.6,0.03549119]
[1763659527050,6.23685864,2820.3,2817.6,0.03549119]
[1763659527051,0.09143802,2819.2,2817.7,6.27234857]
[1763659527329,0.09143802,2819.2,2817.8,0.131]
[1763659527330,0.4901,2819.2,2817.8,0.131]
[1763659527486,0.4901,2819.2,2817.1,0.6011]
[1763659527690,0.4901,2819.2,2817.1,0.1482]
[1763659527998,0.09143802,2818.9,2817.2,0.5839]
[1763659528194,0.58153802,2819.2,2817.2,1.35989264]
[1763659528395,0.58153802,2819.2,2817.4,0.405504]
[1763659528701,0.09143802,2819.6,2817.8,0.405504]
[1763659529020,0.4901,2820.3,2818.2,1.31249664]
[1763659529237,0.4901,2820.3,2818.4,0.405504]
[1763659529384,0.58153802,2820.3,2818.7,1.31249664]
[1763659529737,0.58153802,2820.3,2818.8,0.131]
[1763659529738,0.4901,2820.3,2818.8,0.131]
[1763659529888,0.4912,2820.9,2819.1,1.31249664]
[1763659530087,0.1847,2822.2,2819.6,1.31249664]
[1763659530088,0.1974,2821.4,2819.6,1.31249664]
[1763659530284,0.1974,2821.4,2819.2,0.595]
[1763659530285,0.09143802,2821.2,2819.8,0.405504]
[1763659530489,0.09143802,2820.9,2820.0,0.405504]
[1763659530721,0.4912,2821.3,2819.3,0.4697]
[1763659530889,0.09143802,2820.7,2819.4,0.131]
[1763659531089,0.4912,2821.2,2819.6,0.405504]
[1763659531090,0.09143802,2820.3,2819.6,0.405504]
[1763659531315,0.09143802,2820.3,2818.7,0.1253]
[1763659531628,0.4912,2820.2,2817.9,0.4697]
[1763659531799,0.09143802,2819.4,2818.0,0.131]
[1763659531985,0.28883802,2819.7,2818.1,0.131]
[1763659532184,0.4912,2820.6,2818.3,0.90699264]
[1763659532418,0.09143802,2820.3,2818.2,0.4697]
[1763659532619,0.4912,2820.6,2818.5,0.405504]
[1763659532820,0.09143802,2820.0,2818.6,0.131]
[1763659533008,1.31249664,2820.9,2818.0,0.131]
[1763659533009,0.6886,2819.9,2818.0,0.131]
[1763659533398,0.09143802,2819.5,2818.0,0.131]
[1763659533598,0.09143802,2819.2,2817.8,1.37669264]
[1763659533933,0.09143802,2819.2,2817.9,0.131]
[1763659534092,0.09143802,2819.2,2818.0,0.131]
[1763659534430,0.58263802,2819.2,2818.1,0.131]
[1763659534738,0.58263802,2819.2,2817.1,3.69793177]
[1763659534739,0.09143802,2818.5,2816.5,0.4697]
[1763659535044,0.4912,2819.2,2816.5,0.4697]
[1763659535045,0.09143802,2818.7,2817.1,0.1482]
[1763659535338,0.09143802,2818.7,2817.2,0.131]
[1763659535490,0.4912,2818.6,2817.1,0.1482]
[1763659535686,0.09143802,2818.3,2816.1,0.592]
[1763659535892,0.4912,2818.6,2816.2,0.131]
[1763659536086,0.1974,2818.2,2816.5,0.18542968]
[1763659536321,0.1974,2818.2,2816.3,0.4697]
[1763659536322,0.09143802,2817.5,2816.3,0.4697]
[1763659536534,0.4912,2818.5,2816.2,0.03550884]
[1763659536692,0.40586195,2818.0,2816.3,6.70655864]
[1763659536890,0.4912,2818.4,2816.8,6.23685864]
[1763659537100,0.09143802,2818.0,2816.9,0.90699264]
[1763659537290,0.09143802,2818.0,2816.5,0.90699264]
[1763659537491,0.09143802,2818.0,2816.6,0.4697]
[1763659537935,0.09143802,2818.0,2816.7,0.131]
[1763659538137,0.09143802,2818.0,2816.7,0.536504]
[1763659538341,0.09143802,2818.0,2816.2,0.90699264]
[1763659538342,0.09143802,2817.5,2816.2,0.90699264]
[1763659538490,0.09143802,2817.5,2816.1,6.69555864]
[1763659538690,0.09143802,2817.1,2816.1,0.4587]
[1763659539130,0.4595,2817.5,2815.7,6.35915864]
[1763659539131,0.09143802,2816.7,2816.2,0.131]
[1763659539311,0.4595,2817.5,2816.2,0.131]
[1763659539312,0.09143802,2817.0,2816.2,0.131]
[1763659539512,0.4595,2817.5,2816.0,0.4587]
[1763659539727,0.09143802,2817.1,2816.0,0.4587]
[1763659539935,0.55675602,2817.7,2816.5,1.31249664]
[1763659540120,0.4595,2818.1,2816.7,0.405504]
[1763659540329,0.1974,2818.6,2816.7,0.405504]
[1763659540330,0.55678267,2818.2,2816.7,0.405504]
[1763659540537,0.55678267,2818.2,2817.0,1.31249664]
[1763659540737,0.09143802,2818.4,2817.2,0.405504]
[1763659541152,0.09143802,2818.4,2817.2,0.864204]
[1763659541471,0.1927,2819.0,2817.6,0.405504]
[1763659541674,0.4595,2819.4,2817.6,0.405504]
[1763659541675,0.09143802,2818.8,2817.6,0.405504]
[1763659541829,0.09143802,2818.4,2817.6,0.405504]
[1763659542318,0.09143802,2818.4,2817.8,0.405504]
[1763659542816,0.09143802,2818.4,2817.4,0.405504]
[1763659543015,0.09143802,2818.4,2817.9,0.131]
[1763659543336,0.09143802,2818.4,2816.0,0.001]
[1763659543337,0.4595,2818.4,2816.6,6.69555864]
[1763659543532,0.09143802,2817.7,2816.7,0.90699264]